bitfinex-derivatives/quotes_SOLF0:USTF0_20250207
["timestamp","ask_amount","ask_price","bid_price","bid_amount"]
[1738902013314,14.22503635,194.99,194.9,0.03931877]
[1738902013619,1.5876,195.01,194.9,0.03931877]
[1738902013816,1.5876,195.01,194.97,5.1282]
[1738902014210,1.5876,195.01,194.91,1.5683]
[1738902014708,1.5876,195.01,194.97,0.03813135]
[1738902015815,14.22503635,194.99,194.97,0.03813135]
[1738902017623,14.22503635,194.99,194.87,1.5045]
[1738902017817,14.22503635,194.95,194.87,1.5045]
[1738902018020,14.22503635,194.95,194.84,1.5542]
[1738902018217,14.22503635,194.92,194.84,1.5542]
[1738902018821,0.03795868,194.9,194.86,0.0359763]
[1738902019625,0.03795868,194.9,194.87,5.1308]
[1738902025730,14.22503635,194.89,194.86,0.0359763]
[1738902028031,0.03795868,194.9,194.86,0.0359763]
[1738902028626,0.03795868,194.9,194.88,5.1303]
[1738902030729,0.03795868,194.9,194.89,5.1303]
[1738902030933,14.22503635,194.98,194.87,1.6616]
[1738902031133,14.22503635,194.98,194.88,1.6185]
[1738902031930,14.22503635,194.98,194.94,5.1288]
[1738902032129,14.22503635,194.98,194.91,0.03401938]
[1738902032531,14.22503635,194.98,194.93,5.1292]
[1738902033536,14.22503635,194.98,194.91,5.16361938]
[1738902033837,14.22503635,194.98,194.91,0.03401938]
[1738902034738,14.22503635,194.98,194.93,5.1292]
[1738902034933,14.22503635,194.98,194.91,0.03401938]
[1738902035838,14.22503635,194.98,194.91,5.16351938]
[1738902037033,14.22503635,194.98,194.91,0.03401938]
[1738902037234,14.22503635,194.98,194.92,5.1295]
[1738902038445,14.22503635,194.98,194.91,5.16381938]
[1738902038736,14.22503635,194.95,194.91,0.03401938]
[1738902039336,14.22503635,194.98,194.91,0.03401938]
[1738902040941,14.22503635,194.98,194.93,5.1292]
[1738902041943,14.22503635,194.98,194.91,5.16361938]
[1738902042739,14.22503635,194.98,194.91,0.03401938]
[1738902043843,14.22503635,194.93,194.91,0.03401938]
[1738902047738,1.6637,194.96,194.91,0.03401938]
[1738902048239,14.22503635,194.95,194.91,0.03401938]
[1738902049446,14.22503635,194.92,194.91,0.03401938]
[1738902052847,14.22503635,194.92,194.85,5.1313]
[1738902053147,3.66,194.91,194.85,5.1313]
[1738902053949,0.03419205,194.9,194.86,0.03861345]
[1738902055852,0.03419205,194.9,194.88,5.1303]
[1738902056552,0.03419205,194.9,194.89,5.1303]
[1738902058162,0.03419205,194.9,194.86,0.03861345]
[1738902058860,0.03419205,194.9,194.86,5.16951345]
[1738902059162,0.03419205,194.9,194.86,0.03861345]
[1738902060061,0.03419205,194.9,194.89,5.1303]
[1738902060663,0.03419205,194.9,194.86,0.03861345]
[1738902061465,0.03419205,194.9,194.87,5.1308]
[1738902061664,0.03419205,194.9,194.86,0.03861345]
[1738902062760,0.03419205,194.9,194.89,5.1303]
[1738902063363,0.03419205,194.9,194.87,5.1306]
[1738902063664,0.03419205,194.9,194.86,0.03861345]
[1738902063865,0.03419205,194.9,194.88,5.1303]
[1738902064065,0.03419205,194.9,194.86,0.03861345]
[1738902064369,3.66,195.0,194.86,14.2636498]
[1738902064558,3.66,195.0,194.84,3.1786]
[1738902064758,9.09576998,194.96,194.89,9.09576998]
[1738902065165,9.09576998,194.96,194.93,5.129]
[1738902066266,9.09576998,194.98,194.95,5.1287]
[1738902066475,9.09576998,195.0,194.93,9.09576998]
[1738902066768,9.09576998,195.02,194.97,5.1282]
[1738902066968,9.09576998,195.02,194.95,9.12977705]
[1738902067561,9.09576998,195.02,194.99,5.1275]
[1738902068768,64.55133686,195.04,194.99,5.1275]
[1738902069267,64.55133686,195.04,195.0,0.0394651]
[1738902070872,14.20453027,195.07,195.03,5.1266]
[1738902071263,14.20453027,195.07,195.03,5.16461104]
[1738902072863,14.20453027,195.07,195.03,0.03801104]
[1738902074763,14.20453027,195.07,195.03,5.16461104]
[1738902075669,3.66,195.09,195.03,5.16461104]
[1738902076670,14.20453027,195.05,195.03,0.03801104]
[1738902081374,3.66,195.09,195.03,0.03801104]
[1738902081574,14.20453027,195.07,195.03,0.03801104]
[1738902086776,14.20453027,195.07,195.03,5.16461104]
[1738902089480,14.20453027,195.07,195.03,0.03801104]
[1738902090578,9.0879381,195.04,195.03,0.03801104]
[1738902091683,9.0879381,195.06,195.03,0.03801104]
[1738902092780,9.0879381,195.06,195.03,5.16441104]
[1738902094079,9.0879381,195.06,195.03,0.03801104]
[1738902094981,9.0879381,195.1,195.03,9.12594914]
[1738902095283,9.0879381,195.1,195.04,1.6496]
[1738902095476,9.0879381,195.12,195.05,9.0879381]
[1738902096078,9.0879381,195.12,195.07,0.03625536]
[1738902096283,9.0879381,195.1,195.07,5.16175536]
[1738902096579,9.0879381,195.1,195.07,0.03625536]
[1738902096787,9.0879381,195.08,195.07,0.03625536]
[1738902100175,9.0879381,195.12,195.07,0.03625536]
[1738902101881,9.0879381,195.12,195.08,5.1253]
[1738902102688,9.0879381,195.1,195.08,5.1253]
[1738902103590,9.0879381,195.1,195.07,0.03625536]
[1738902103890,9.0879381,195.1,195.07,5.16175536]
[1738902104988,9.0879381,195.12,195.08,5.1252]
[1738902105989,9.0879381,195.12,195.09,5.125]
[1738902109988,9.0879381,195.14,195.09,9.0879381]
[1738902111998,9.0879381,195.14,195.09,5.125]
[1738902112192,9.0879381,195.14,195.07,9.12419346]
[1738902113297,9.0879381,195.14,195.09,5.125]
[1738902113489,9.0879381,195.12,195.09,5.125]
[1738902113688,9.0879381,195.12,195.07,9.12419346]
[1738902113893,9.0879381,195.12,195.1,5.1247]
[1738902115700,9.0879381,195.12,195.07,0.03625536]
[1738902115888,9.0879381,195.08,195.07,0.03625536]
[1738902116088,9.0879381,195.1,195.07,0.03625536]
[1738902117900,9.0879381,195.1,195.07,5.16165536]
[1738902118401,9.0879381,195.08,195.07,0.03625536]
[1738902120903,9.0879381,195.1,195.07,0.03625536]
[1738902121304,9.0879381,195.1,195.08,5.1252]
[1738902121894,9.0879381,195.1,195.07,0.03625536]
[1738902122099,9.0879381,195.1,195.07,5.16175536]
[1738902133215,9.0879381,195.1,195.08,5.1253]
[1738902133708,9.0879381,195.12,195.08,5.1253]
[1738902134914,0.18091,195.15,195.09,9.0879381]
[1738902135305,0.18091,195.15,195.12,5.124]
[1738902135501,0.18091,195.15,195.06,1.6361]
[1738902135705,0.18091,195.15,195.13,9.0879381]
[1738902136202,13.8113734,195.25,195.13,9.0879381]
[1738902136203,12.1719734,195.25,195.13,9.0879381]
[1738902136403,56.02381401,195.26,195.18,9.0879381]
[1738902136603,56.02381401,195.26,195.2,9.0879381]
[1738902137313,56.02381401,195.26,195.22,5.1216]
[1738902137707,56.02381401,195.26,195.21,0.03251214]
[1738902137914,9.0879381,195.25,195.21,0.03251214]
[1738902139010,9.0879381,195.25,195.22,5.1215]
[1738902139219,56.02381401,195.26,195.21,0.03251214]
[1738902139515,9.0879381,195.27,195.21,0.03251214]
[1738902141315,9.0879381,195.27,195.22,5.1214]
[1738902141516,9.0879381,195.27,195.21,0.03251214]
[1738902142024,9.0879381,195.27,195.23,5.1212]
[1738902143411,9.0879381,195.27,195.21,0.03251214]
[1738902143718,9.0879381,195.27,195.21,5.15411214]
[1738902144413,9.0879381,195.27,195.21,0.03251214]
[1738902144612,9.0879381,195.25,195.21,0.03251214]
[1738902145715,14.2087381,195.25,195.21,0.03251214]
[1738902148416,9.0879381,195.27,195.21,0.03251214]
[1738902148630,9.0879381,195.29,195.22,9.0879381]
[1738902149119,9.0879381,195.27,195.21,0.03251214]
[1738902150226,5.1206,195.26,195.21,0.03251214]
[1738902151633,9.0879381,195.27,195.21,0.03251214]
[1738902151935,5.1209,195.25,195.21,0.03251214]
[1738902153737,5.1216,195.22,195.21,0.03251214]
[1738902157735,14.2107381,195.18,195.1,9.0879381]
[1738902158633,5.123,195.17,195.11,5.1245]
[1738902158833,5.123,195.17,195.12,0.03391915]
[1738902158834,0.03251214,195.16,195.12,0.03391915]
[1738902159333,5.1235,195.15,195.12,0.03391915]
[1738902160244,5.1235,195.15,195.12,9.12185725]
[1738902160945,0.03251214,195.16,195.14,9.0879381]
[1738902161439,0.03251214,195.16,195.13,5.124]
[1738902161644,0.03251214,195.16,195.12,0.03391915]
[1738902162944,5.1237,195.15,195.12,0.03391915]
[1738902165646,0.03251214,195.16,195.12,0.03391915]
[1738902165847,5.1238,195.14,195.12,0.03391915]
[1738902166546,5.15591214,195.16,195.12,0.03391915]
[1738902168049,0.03251214,195.16,195.14,9.0879381]
[1738902168841,0.03251214,195.16,195.15,5.1235]
[1738902170848,0.03251214,195.16,195.12,9.12185725]
[1738902171049,0.03251214,195.16,195.14,5.1237]
[1738902171445,0.03251214,195.16,195.12,9.12185725]
[1738902171652,0.03251214,195.16,195.13,5.124]
[1738902172548,0.03251214,195.16,195.12,0.03391915]
[1738902173251,0.03251214,195.16,195.12,5.15791915]
[1738902174257,9.0879381,195.29,195.15,9.0879381]
[1738902174463,9.0879381,195.29,195.21,9.0879381]
[1738902174755,5.1211,195.24,195.19,9.0879381]
[1738902175345,5.1211,195.24,195.2,0.03720521]
[1738902175757,9.0879381,195.25,195.2,0.03720521]
[1738902175952,5.1216,195.23,195.2,0.03720521]
[1738902178056,9.0879381,195.21,195.2,0.03720521]
[1738902178256,14.2098381,195.21,195.2,0.03720521]
[1738902178650,9.0879381,195.21,195.12,193.0]
[1738902178855,9.0879381,195.17,195.11,9.0879381]
[1738902179048,9.0879381,195.17,195.09,36.69271276]
[1738902179752,0.03720521,195.15,195.12,5.1242]
[1738902180950,0.03720521,195.15,195.11,5.15766854]
[1738902181455,0.03720521,195.15,195.11,0.03316854]
[1738902181657,0.03720521,195.15,195.14,5.1237]
[1738902182958,5.124,195.14,195.11,0.03316854]
[1738902183159,0.03720521,195.15,195.11,0.03316854]
[1738902183563,5.16090521,195.15,195.11,0.03316854]
[1738902183761,0.03720521,195.15,195.11,0.03316854]
[1738902185056,0.03720521,195.15,195.12,5.1241]
[1738902187165,0.03720521,195.15,195.11,0.03316854]
[1738902187965,5.16080521,195.15,195.11,0.03316854]
[1738902188162,0.03720521,195.15,195.11,0.03316854]
[1738902189164,5.1243,195.12,195.11,0.03316854]
[1738902190369,19.38525298,195.14,195.04,6.90119366]
[1738902190565,5.125,195.1,195.04,6.90119366]
[1738902191271,5.125,195.1,195.03,5.1266]
[1738902191471,5.125,195.1,195.01,1.5341]
[1738902191667,0.03587675,195.08,195.05,5.15906981]
[1738902191869,0.03587675,195.08,195.05,0.03296981]
[1738902192870,5.1256,195.07,195.05,0.03296981]
[1738902193770,0.03587675,195.08,195.05,0.03296981]
[1738902194272,14.21612973,195.08,195.05,0.03296981]
[1738902195773,5.1258,195.07,195.05,0.03296981]
[1738902196472,5.1258,195.06,195.05,0.03296981]
[1738902199070,5.1256,195.07,195.05,0.03296981]
[1738902199468,14.21612973,195.08,195.05,0.03296981]
[1738902199673,14.21612973,195.08,194.94,21.08144664]
[1738902199974,14.18025298,195.05,194.94,21.08144664]
[1738902200676,14.18025298,195.08,194.94,21.08144664]
[1738902200876,0.03505305,195.01,194.98,0.03582614]
[1738902201077,19.30555298,195.08,195.02,5.1269]
[1738902201475,14.21467919,195.05,194.93,3.2604]
[1738902201675,17.82025298,195.04,194.98,5.1278]
[1738902202175,22.94665298,195.04,194.98,5.1278]
[1738902202778,9.08983604,195.01,194.99,0.03283489]
[1738902205375,9.12923831,195.03,194.99,0.03283489]
[1738902209181,9.12923831,195.03,194.99,5.16053489]
[1738902214682,14.25603831,195.03,194.99,5.16053489]
[1738902215682,14.25603831,195.03,194.99,0.03283489]
[1738902219286,5.1269,195.02,194.99,0.03283489]
[1738902220387,5.1274,195.0,194.99,0.03283489]
[1738902221788,14.21703604,195.01,194.99,0.03283489]
[1738902222692,9.08983604,195.01,194.99,0.03283489]
[1738902227799,5.1274,195.0,194.99,0.03283489]
[1738902229498,0.03940227,195.03,194.99,0.03283489]
[1738902229702,0.03940227,195.03,195.02,9.08983604]
[1738902230096,0.03940227,195.03,195.02,14.21673604]
[1738902232007,0.03940227,195.03,195.02,5.1269]
[1738902232205,0.03940227,195.03,195.01,5.1271]
[1738902233707,0.03940227,195.03,195.0,9.08983604]
[1738902234104,0.03940227,195.03,194.99,5.16043489]
[1738902234408,0.03940227,195.03,194.99,0.03283489]
[1738902235908,0.03940227,195.03,195.0,5.1274]
[1738902240212,0.03940227,195.03,195.01,5.1271]
[1738902240913,0.03940227,195.03,195.02,5.1269]
[1738902242609,0.03940227,195.03,195.02,14.21673604]
[1738902243311,9.08983604,195.09,195.07,5.1255]
[1738902244612,9.08983604,195.09,195.06,5.16471364]
[1738902245114,9.08983604,195.09,195.06,0.03891364]
[1738902246415,9.08983604,195.09,195.06,5.16451364]
[1738902247314,9.08983604,195.09,195.06,0.03891364]
[1738902247517,9.08983604,195.09,195.08,5.1253]
[1738902248121,0.03421359,195.1,195.08,5.1253]
[1738902248417,0.03421359,195.1,195.09,5.125]
[1738902275741,9.08983604,195.17,195.14,5.1236]
[1738902277045,9.1281543,195.17,195.14,5.16092269]
[1738902277247,9.1281543,195.17,195.14,0.03732269]
[1738902277550,14.2510543,195.17,195.14,0.03732269]
[1738902278548,14.21333604,195.15,195.14,0.03732269]
[1738902283142,9.08983604,195.15,195.14,0.03732269]
[1738902285044,9.1281543,195.17,195.15,5.1235]
[1738902285447,9.1281543,195.17,195.14,0.03732269]
[1738902285647,9.1281543,195.17,195.14,5.16102269]
[1738902286651,0.03831826,195.17,195.16,5.1232]
[1738902286843,0.03831826,195.17,195.16,14.21303604]
[1738902291654,0.03831826,195.17,195.16,5.1232]
[1738902295754,0.03831826,195.17,195.14,0.03732269]
[1738902295954,0.03831826,195.17,195.15,5.1234]
[1738902296156,9.1281543,195.17,195.14,0.03732269]
[1738902296357,9.1281543,195.17,195.14,5.16102269]
[1738902299153,0.03831826,195.17,195.14,0.03732269]
[1738902299352,0.03831826,195.17,195.16,5.1232]
[1738902304053,0.03831826,195.17,195.15,5.1235]
[1738902304253,0.03831826,195.17,195.14,0.03732269]
[1738902305455,0.03831826,195.17,195.15,5.1234]
[1738902310257,0.03831826,195.17,195.14,0.03732269]
[1738902310258,0.03831826,195.17,195.16,5.1232]
[1738902328480,0.03831826,195.17,195.15,5.1234]
[1738902329778,0.03831826,195.17,195.14,0.03732269]
[1738902329979,0.03831826,195.17,195.16,5.1232]
[1738902331987,9.08983604,195.23,195.16,9.08983604]
[1738902332192,9.08983604,195.23,195.2,5.1219]
[1738902333083,9.11916764,195.23,195.2,5.1548538]
[1738902333280,9.11916764,195.23,195.2,0.0329538]
[1738902333481,9.11916764,195.23,195.21,5.1218]
[1738902334483,0.0293316,195.23,195.21,5.1218]
[1738902335684,0.0293316,195.23,195.22,5.1216]
[1738902339992,0.0293316,195.23,195.2,14.24468984]
[1738902340492,0.0293316,195.23,195.2,5.1548538]
[1738902342195,9.08983604,195.21,195.2,0.0329538]
[1738902343992,14.21173604,195.21,195.2,0.0329538]
[1738902358306,9.08983604,195.21,195.2,0.0329538]
[1738902359705,14.21173604,195.21,195.2,0.0329538]
[1738902360601,14.21173604,195.21,195.11,1.5411]
[1738902360807,9.08983604,195.17,195.12,5.1242]
[1738902361411,9.08983604,195.17,195.11,3.1016]
[1738902361610,14.21333604,195.15,195.11,3.1016]
[1738902361907,14.21333604,195.15,195.12,0.03442362]
[1738902362207,9.08983604,195.13,195.12,0.03442362]
[1738902362603,14.21383604,195.13,195.12,0.03442362]
[1738902363010,9.08983604,195.13,195.12,0.03442362]
[1738902367420,9.08983604,195.13,195.04,5.1261]
[1738902367616,9.08983604,195.07,195.04,5.1261]
[1738902368018,9.08983604,195.09,195.04,5.1261]
[1738902368420,0.03503718,195.08,195.05,0.03762689]
[1738902371518,9.08983604,195.07,195.05,0.03762689]
[1738902372816,5.1258,195.06,195.05,0.03762689]
[1738902376624,9.08983604,195.07,195.05,0.03762689]
[1738902377316,0.03503718,195.08,195.05,0.03762689]
[1738902378513,0.03503718,195.08,195.06,5.1258]
[1738902381427,9.08983604,195.07,195.05,0.03762689]
[1738902382330,5.1258,195.06,195.05,0.03762689]
[1738902382521,9.08983604,195.07,195.05,0.03762689]
[1738902383840,0.03503718,195.08,195.05,0.03762689]
[1738902384532,0.03503718,195.08,195.06,5.1258]
[1738902386737,0.03503718,195.08,195.05,5.16372689]
[1738902386939,0.03503718,195.08,195.05,0.03762689]
[1738902387238,9.08983604,195.07,195.05,0.03762689]
[1738902390141,9.08983604,195.07,195.05,5.16372689]
[1738902390340,9.08983604,195.07,195.05,0.03762689]
[1738902390540,0.03503718,195.08,195.05,0.03762689]
[1738902390839,9.08983604,195.11,195.05,0.03762689]
[1738902391041,9.08983604,195.13,195.05,0.03762689]
[1738902391232,9.08983604,195.13,195.06,9.08983604]
[1738902391544,9.08983604,195.09,195.03,1.5223]
[1738902391938,9.08983604,195.09,195.07,5.1254]
[1738902392134,0.03642515,195.08,195.07,5.1254]
[1738902396338,0.03642515,195.08,195.05,5.126]
[1738902396943,0.03642515,195.08,195.04,0.03709902]
[1738902397144,0.03642515,195.08,195.06,5.1258]
[1738902402446,0.03642515,195.08,195.04,0.03709902]
[1738902402747,0.03642515,195.08,195.05,5.1261]
[1738902406144,0.03642515,195.08,195.04,0.03709902]
[1738902406350,0.03642515,195.08,195.06,5.1258]
[1738902406644,0.03642515,195.08,195.04,0.03709902]
[1738902406847,0.03642515,195.08,195.07,5.1256]
[1738902407246,9.08983604,195.13,195.06,9.08983604]
[1738902408245,0.02524669,195.11,195.06,9.08983604]
[1738902408549,0.02524669,195.11,195.09,5.1248]
[1738902409445,0.02524669,195.11,195.08,0.03580504]
[1738902409649,9.08983604,195.17,195.1,9.08983604]
[1738902409949,9.08983604,195.21,195.14,9.08983604]
[1738902410251,9.08983604,195.21,195.18,5.1227]
[1738902410946,9.08983604,195.21,195.18,5.15689699]
[1738902412045,9.08983604,195.21,195.18,0.03419699]
[1738902412446,9.08983604,195.19,195.18,0.03419699]
[1738902413051,14.21223604,195.19,195.18,0.03419699]
[1738902416253,5.1232,195.17,195.11,5.1245]
[1738902416453,9.08983604,195.14,195.11,5.1245]
[1738902417254,9.12245032,195.14,195.11,5.15835334]
[1738902419757,0.03261428,195.14,195.11,5.15835334]
[1738902419949,0.03261428,195.14,195.13,5.124]
[1738902420145,9.08983604,195.2,195.12,9.08983604]
[1738902420446,14.21203604,195.2,195.14,5.1235]
[1738902420651,14.21203604,195.2,195.12,9.08983604]
[1738902420953,9.08983604,195.2,195.15,5.1232]
[1738902421160,9.08983604,195.2,195.12,9.08983604]
[1738902421357,9.08983604,195.2,195.16,0.03448716]
[1738902422861,9.08983604,195.22,195.16,0.03448716]
[1738902423256,9.08983604,195.22,195.16,9.1243232]
[1738902424661,14.21113604,195.24,195.16,9.1243232]
[1738902425259,9.08983604,195.24,195.2,5.1221]
[1738902425657,9.08983604,195.21,195.2,0.03489266]
[1738902425860,14.21173604,195.21,195.2,0.03489266]
[1738902436974,9.08983604,195.21,195.09,9.08983604]
[1738902437170,9.08983604,195.11,195.03,17.6542297]
[1738902437371,9.08983604,195.07,195.03,8.56439366]
[1738902437675,9.08983604,195.07,195.03,6.90119366]
[1738902438272,5.1261,195.05,195.03,6.93478763]
[1738902439175,5.16227537,195.07,195.03,6.93478763]
[1738902439777,5.1258,195.06,195.03,6.93478763]
[1738902439978,5.1258,195.06,195.03,0.03359397]
[1738902441073,0.03647537,195.07,195.03,0.03359397]
[1738902442679,0.03647537,195.07,195.03,5.15999397]
[1738902442971,0.03647537,195.07,195.03,0.03359397]
[1738902443774,14.23231793,195.07,195.03,0.03359397]
[1738902445775,5.1263,195.05,195.03,0.03359397]
[1738902446885,5.1264,195.04,195.03,0.03359397]
[1738902447384,19.32224256,195.04,195.03,0.03359397]
[1738902449380,5.1279,194.98,194.93,1.5037]
[1738902450481,14.19584256,194.99,194.91,1.5748]
[1738902450677,5.16416586,194.97,194.94,0.03927269]
[1738902453584,5.1287,194.95,194.94,0.03927269]
[1738902453782,14.19584256,194.96,194.88,5.1305]
[1738902454085,14.19584256,194.96,194.83,14.19584256]
[1738902454283,5.1297,194.92,194.86,5.1309]
[1738902454786,14.19584256,194.93,194.82,3.071]
[1738902454976,0.03407418,194.91,194.87,0.03317877]
[1738902455788,5.16387418,194.91,194.87,0.03317877]
[1738902457795,0.03407418,194.91,194.9,5.13]
[1738902459188,14.19584256,194.96,194.92,5.1293]
[1738902460288,14.23176982,194.96,194.92,0.03668198]
[1738902461793,5.1287,194.95,194.92,0.03668198]
[1738902462293,14.19584256,194.93,194.92,0.03668198]
[1738902462489,14.19584256,194.93,194.82,3.071]
[1738902462692,14.19584256,194.89,194.82,3.071]
[1738902463191,19.32634256,194.89,194.83,5.1316]
[1738902463582,0.03910801,194.88,194.84,0.03824314]
[1738902465190,5.1308,194.87,194.84,0.03824314]
[1738902466099,0.03910801,194.88,194.84,0.03824314]
[1738902467095,0.03910801,194.88,194.85,5.1313]
[1738902468194,0.03910801,194.88,194.87,5.1308]
[1738902472795,14.19584256,194.95,194.91,5.1297]
[1738902473996,14.23337037,194.95,194.91,5.16533518]
[1738902475692,14.23337037,194.95,194.91,0.03563518]
[1738902475896,14.23337037,194.95,194.92,5.1294]
[1738902477707,14.23337037,194.95,194.91,5.16543518]
[1738902478505,19.36207037,194.95,194.91,0.03563518]
[1738902478806,14.23337037,194.95,194.91,0.03563518]
[1738902479202,5.1293,194.93,194.91,0.03563518]
[1738902481610,5.129,194.94,194.91,0.03563518]
[1738902483312,5.1293,194.93,194.91,0.03563518]
[1738902485014,19.36227037,194.95,194.91,0.03563518]
[1738902485208,14.23337037,194.95,194.91,0.03563518]
[1738902486816,5.1291,194.94,194.91,0.03563518]
[1738902490817,9.09814419,194.92,194.91,0.03563518]
[1738902491913,0.03752781,194.95,194.91,0.03563518]
[1738902492312,9.09814419,194.94,194.91,0.03563518]
[1738902495714,0.03752781,194.95,194.91,0.03563518]
[1738902495919,9.09814419,194.92,194.91,0.03563518]
[1738902496808,14.22764419,194.92,194.91,0.03563518]
[1738902497619,9.09814419,194.92,194.81,4.8367]
[1738902497815,9.09814419,194.87,194.81,4.8367]
[1738902498020,9.09814419,194.85,194.81,4.8367]
[1738902498216,9.09814419,194.85,194.81,9.9689]
[1738902498425,9.09814419,194.85,194.81,4.8367]
[1738902498818,9.13521914,194.85,194.81,3.24640248]
[1738902499520,9.09814419,194.83,194.81,0.03270248]
[1738902500718,9.09814419,194.83,194.81,5.16500248]
[1738902500925,9.09814419,194.83,194.81,0.03270248]
[1738902504121,9.09814419,194.83,194.81,5.16500248]
[1738902512632,9.09814419,194.83,194.82,5.1321]
[1738902512932,9.09814419,194.83,194.81,0.03270248]
[1738902514326,14.23004419,194.83,194.81,0.03270248]
[1738902514527,9.09814419,194.83,194.76,3.2239]
[1738902514723,9.09814419,194.78,194.73,5.1343]
[1738902514927,9.09814419,194.74,194.69,3.0423]
[1738902515133,9.09814419,194.72,194.69,3.0423]
[1738902515632,9.09814419,194.72,194.71,5.135]
[1738902515932,9.13115047,194.72,194.71,5.135]
[1738902516131,0.03300628,194.72,194.71,5.135]
[1738902517334,9.13115047,194.72,194.69,0.03474887]
[1738902517527,9.13115047,194.72,194.69,5.17014887]
[1738902517723,9.09814419,194.7,194.69,0.03474887]
[1738902518029,9.09814419,194.7,194.69,5.17034887]
[1738902518231,9.09814419,194.7,194.69,0.03474887]
[1738902519840,9.09814419,194.7,194.69,5.17034887]
[1738902520133,9.13115047,194.72,194.69,0.03474887]
[1738902521538,0.03300628,194.72,194.69,0.03474887]
[1738902521733,0.03300628,194.72,194.71,5.135]
[1738902522533,9.09814419,194.76,194.69,9.13289306]
[1738902522733,9.09814419,194.78,194.72,9.09814419]
[1738902523133,9.09814419,194.8,194.72,9.09814419]
[1738902523636,9.09814419,194.8,194.76,5.1335]
[1738902523937,0.03243415,194.78,194.76,5.1335]
[1738902524140,9.13057834,194.78,194.76,5.1335]
[1738902524735,0.03243415,194.78,194.77,5.1335]
[1738902526843,0.03243415,194.78,194.74,0.03703416]
[1738902527039,14.26733025,194.78,194.74,0.03703416]
[1738902529744,14.26733025,194.78,194.75,5.1339]
[1738902530744,0.03243415,194.78,194.74,0.03703416]
[1738902532751,0.03243415,194.78,194.76,5.1335]
[1738902535451,0.03243415,194.78,194.74,0.03703416]
[1738902535647,0.03243415,194.78,194.77,5.1335]
[1738902552975,9.10896289,194.82,194.75,9.10896289]
[1738902553270,9.10896289,194.82,194.81,5.1324]
[1738902554474,9.10896289,194.82,194.8,5.16603642]
[1738902557973,9.10896289,194.82,194.8,0.03343642]
[1738902558474,9.10896289,194.82,194.8,3.642e-05]
[1738902558773,5.1324,194.81,194.8,3.642e-05]
[1738902558975,9.10896289,194.82,194.8,3.642e-05]
[1738902560567,0.03857231,194.83,194.8,3.642e-05]
[1738902561073,0.03857231,194.83,194.81,5.1324]
[1738902562476,0.03857231,194.83,194.82,5.1321]
[1738902574181,9.10896289,194.88,194.82,5.1321]
[1738902574389,9.10896289,194.9,194.83,9.10896289]
[1738902574784,9.10896289,194.94,194.9,5.1298]
[1738902575587,9.1462912,194.94,194.9,5.16759304]
[1738902580697,14.2753912,194.94,194.9,5.16759304]
[1738902584092,9.10896289,194.92,194.9,0.03779304]
[1738902584298,5.1298,194.91,194.9,0.03779304]
[1738902589102,9.10896289,194.92,194.9,0.03779304]
[1738902590596,14.23866289,194.92,194.9,0.03779304]
[1738902596808,9.10896289,194.92,194.9,0.03779304]
[1738902598613,9.10896289,194.92,194.81,1.606]
[1738902598810,9.10896289,194.86,194.81,1.606]
[1738902599112,9.10896289,194.88,194.79,9.10896289]
[1738902599312,9.10896289,194.88,194.78,3.1548]
[1738902599313,9.10896289,194.88,194.81,9.10896289]
[1738902599505,9.10896289,194.9,194.81,9.10896289]
[1738902600011,0.03746633,194.87,194.85,5.1312]
[1738902601113,0.03746633,194.87,194.86,5.1311]
[1738902604615,0.03746633,194.87,194.84,5.1702925]
[1738902604814,0.03746633,194.87,194.84,0.0389925]
[1738902605818,0.03746633,194.87,194.85,5.1312]
[1738902606611,3.5639,195.0,194.85,5.1312]
[1738902606612,9.10896289,194.97,194.85,9.10896289]
[1738902606813,9.10896289,195.01,194.92,9.10896289]
[1738902607413,9.10896289,195.01,194.86,3.1759]
[1738902607621,21.26866379,195.03,194.96,9.10896289]
[1738902607913,9.10896289,195.01,194.96,5.1282]
[1738902608115,9.14432056,195.01,194.96,5.1282]
[1738902608319,9.14432056,195.01,194.98,0.03439469]
[1738902612023,9.14432056,195.01,194.99,5.1276]
[1738902613023,9.14432056,195.01,194.98,5.16229469]
[1738902614834,9.14432056,195.01,194.98,0.03439469]
[1738902615138,9.10896289,194.99,194.98,0.03439469]
[1738902616133,14.23666289,194.99,194.98,0.03439469]
[1738902616538,9.14432056,195.01,194.98,0.03439469]
[1738902616939,9.14432056,195.01,194.98,5.16229469]
[1738902621140,0.03535767,195.01,195.0,5.1274]
[1738902625748,0.03535767,195.01,194.99,5.1276]
[1738902626048,0.03535767,195.01,194.98,0.03439469]
[1738902627050,0.03535767,195.01,194.99,5.1277]
[1738902628748,0.03535767,195.01,195.0,5.1274]
[1738902635146,9.14432056,195.01,194.98,0.03439469]
[1738902636654,0.03535767,195.01,194.98,0.03439469]